bitfinex/quotes_ETHUSD_20250801
["timestamp","ask_amount","ask_price","bid_price","bid_amount"]
[1754029701268,3.0,3675.4,3675.1,0.4874]
[1754029701454,0.001,3675.5,3675.1,0.4874]
[1754029701641,0.001,3675.5,3674.6,8.02127889]
[1754029701840,0.001,3675.5,3673.9,0.52641063]
[1754029701841,0.001,3675.5,3674.8,0.4874]
[1754029702480,4.346,3675.4,3674.8,0.4874]
[1754029703042,11.346,3675.4,3674.8,0.4874]
[1754029704983,11.346,3675.4,3673.9,0.52641063]
[1754029705182,3.8841,3675.3,3674.3,0.4874]
[1754029705478,5.2241,3675.2,3674.3,0.4874]
[1754029705848,3.0,3675.1,3674.3,0.4874]
[1754029706366,0.001,3675.5,3674.3,0.4874]
[1754029706569,4.337,3675.4,3674.4,11.77513604]
[1754029706747,4.337,3675.4,3674.5,1.2262536]
[1754029707066,4.337,3675.4,3674.6,0.4874]
[1754029708181,0.8841,3675.3,3674.5,1.2262536]
[1754029708531,3.8841,3675.3,3674.3,0.4874]
[1754029708684,0.8841,3675.2,3674.3,0.4874]
[1754029708851,0.8841,3675.1,3673.5,0.002]
[1754029709052,4.336,3675.0,3674.0,0.4874]
[1754029709253,0.8841,3674.9,3674.0,0.4874]
[1754029709693,0.8841,3674.8,3673.8,0.4874]
[1754029709903,0.8841,3674.8,3673.5,0.002]
[1754029710169,0.8841,3674.7,3673.5,0.002]
[1754029710366,0.136,3674.0,3673.5,0.138]
[1754029710584,4.47,3674.0,3673.5,0.6254]
[1754029711207,4.9,3674.0,3673.5,0.138]
[1754029711363,4.9,3674.0,3673.5,0.002]
[1754029711364,0.8841,3673.9,3673.5,0.002]
[1754029711815,0.43,3673.8,3673.5,0.002]
[1754029713226,0.43,3673.7,3673.5,0.002]
[1754029713383,0.8841,3673.7,3673.5,0.002]
[1754029713817,0.43,3673.7,3673.5,0.002]
[1754029714018,0.136,3673.8,3673.5,0.002]
[1754029714520,0.136,3673.8,3673.5,0.4894]
[1754029715525,4.461,3674.0,3673.6,0.4874]
[1754029715731,4.325,3674.0,3673.7,0.4874]
[1754029716524,4.325,3674.0,3673.5,0.6254]
[1754029716712,4.325,3674.0,3673.6,0.4874]
[1754029719095,4.325,3674.0,3673.5,0.138]
[1754029719290,4.325,3674.0,3673.5,1.86273207]
[1754029719484,0.136,3674.1,3673.5,1.86273207]
[1754029719686,4.322,3674.0,3673.5,1.86273207]
[1754029719901,0.43,3673.9,3673.5,1.37533207]
[1754029720131,0.43,3673.8,3673.5,0.138]
[1754029720632,0.8841,3673.7,3673.5,0.138]
[1754029721705,0.43,3673.7,3673.5,0.138]
[1754029721906,5.2061,3674.0,3673.5,0.138]
[1754029722645,4.7761,3674.0,3673.5,0.138]
[1754029722952,0.8841,3673.9,3673.5,0.138]
[1754029723152,0.4541,3673.9,3673.5,0.138]
[1754029723304,0.43,3673.8,3673.5,0.138]
[1754029724053,0.8841,3673.7,3673.5,0.002]
[1754029724553,0.8841,3673.6,3673.5,0.002]
[1754029726209,0.8768862,3673.6,3673.5,0.002]
[1754029726540,0.8768862,3673.6,3673.1,0.022]
[1754029726839,30.0,3672.8,3672.1,0.02]
[1754029727041,0.136,3672.2,3672.1,0.02]
[1754029727241,7.49,3672.2,3672.1,0.02]
[1754029727445,7.49,3672.2,3671.1,0.002]
[1754029727446,38.495,3672.2,3671.1,0.002]
[1754029727630,3.0,3671.9,3671.1,0.002]
[1754029727806,0.136,3671.2,3671.1,0.002]
[1754029728012,4.49,3671.2,3671.1,0.002]
[1754029728208,4.9547,3671.2,3671.1,0.002]
[1754029728920,0.136,3671.2,3671.1,0.002]
[1754029729109,4.353,3671.2,3671.1,0.002]
[1754029729634,4.351,3671.2,3671.1,0.4714]
[1754029729821,4.351,3671.2,3671.1,0.6074]
[1754029730208,4.351,3671.2,3671.1,0.138]
[1754029730614,4.8157,3671.2,3671.1,0.138]
[1754029730912,5.2707,3671.2,3671.1,0.138]
[1754029731354,5.4067,3671.2,3671.1,0.002]
[1754029732812,8.94737,3671.2,3671.1,0.022]
[1754029733010,38.94737,3671.2,3671.1,0.022]
[1754029736447,38.94337,3671.2,3671.1,0.022]
[1754029736668,39.49337,3671.2,3671.1,0.022]
[1754029737057,30.0,3671.0,3670.9,0.002]
[1754029737262,30.55,3670.8,3670.7,0.002]
[1754029737444,38.033,3670.8,3670.7,0.002]
[1754029737651,38.9527,3670.8,3670.7,0.002]
[1754029739252,38.9507,3670.8,3670.7,0.002]
[1754029739665,34.6057,3670.8,3670.7,0.002]
[1754029739850,2.72435024,3670.6,3670.5,0.002]
[1754029740051,30.0,3670.4,3669.1,0.02]
[1754029740379,3.55,3670.5,3669.1,0.02]
[1754029740380,3.55,3669.8,3669.1,0.02]
[1754029740560,4.89167,3669.7,3669.1,0.02]
[1754029740761,5.81137,3669.7,3669.1,0.02]
[1754029740976,4.89167,3669.7,3669.1,0.02]
[1754029741278,0.9197,3669.6,3669.1,0.02]
[1754029741479,3.0,3669.4,3669.1,0.02]
[1754029741640,3.0,3669.2,3669.1,0.02]
[1754029741962,4.349,3669.2,3669.1,0.02]
[1754029742948,7.349,3669.2,3669.1,0.4894]
[1754029743152,0.455,3669.8,3669.1,0.4894]
[1754029743455,3.0,3669.6,3669.1,0.4894]
[1754029743670,3.0,3669.4,3669.1,0.4894]
[1754029743887,3.0,3669.4,3667.7,0.15549251]
[1754029743888,3.55,3668.7,3667.7,0.15549251]
[1754029744095,0.55,3668.4,3667.7,0.15549251]
[1754029744383,33.55,3668.2,3667.7,0.15549251]
[1754029744585,37.928,3668.2,3667.7,0.15549251]
[1754029744996,38.8477,3668.2,3667.7,0.15549251]
[1754029745198,39.79466252,3668.2,3667.7,0.15549251]
[1754029745479,39.79366252,3668.2,3667.7,0.15549251]
[1754029746151,35.41666252,3668.2,3667.7,0.15549251]
[1754029746355,39.79466252,3668.2,3667.7,0.15549251]
[1754029746677,34.86666252,3668.2,3667.7,0.15549251]
[1754029746856,39.24266252,3668.2,3667.7,0.15549251]
[1754029747184,39.79266252,3668.2,3667.7,0.15549251]
[1754029748955,39.92637204,3668.2,3667.7,0.15549251]
[1754029749809,35.00037204,3668.2,3667.7,0.15549251]
[1754029749992,9.05337204,3668.2,3667.7,0.15549251]
[1754029750167,39.50837204,3668.2,3667.7,0.15549251]
[1754029750367,30.55,3668.1,3666.9,0.136]
[1754029750620,30.55,3668.1,3665.2,0.155493]
[1754029750621,3.55,3667.0,3665.8,0.4694]
[1754029750925,3.0,3667.7,3666.1,0.4894]
[1754029751068,33.55,3667.5,3666.1,0.4894]
[1754029751268,3.0,3667.1,3666.1,0.4894]
[1754029751513,3.0,3666.8,3666.1,0.4894]
[1754029751802,3.0,3666.6,3666.1,0.4894]
[1754029752014,4.388,3666.5,3666.2,0.1235]
[1754029752308,4.388,3666.5,3666.1,0.4894]
[1754029752309,4.386,3666.5,3666.3,0.5929]
[1754029752478,4.386,3666.5,3666.4,0.4694]
[1754029753206,30.0,3666.4,3666.1,0.02]
[1754029753507,3.0,3666.2,3666.1,0.02]
[1754029753797,4.4697,3666.2,3666.1,0.02]
[1754029753964,5.35507,3666.2,3666.1,0.02]
[1754029754162,35.60368758,3666.2,3666.1,0.02]
[1754029755106,35.60368758,3666.2,3666.1,0.022]
[1754029755809,38.56431758,3666.2,3666.1,0.022]
[1754029755968,39.11431758,3666.2,3666.1,0.022]
[1754029756784,38.56431758,3666.2,3666.1,0.022]
[1754029756989,8.10931758,3666.2,3666.1,0.022]
[1754029757187,4.65461758,3666.2,3666.1,0.022]
[1754029757410,3.24861758,3666.2,3666.1,0.022]
[1754029757617,8.59491758,3666.2,3666.1,0.022]
[1754029758979,39.45440934,3666.2,3666.1,0.022]
[1754029759209,40.00440934,3666.2,3666.1,0.022]
[1754029760111,35.59840934,3666.2,3666.1,0.022]
[1754029760335,40.00040934,3666.2,3666.1,0.022]
[1754029761159,40.13640934,3666.2,3666.1,0.022]
[1754029762293,12.86402921,3666.2,3666.1,0.022]
[1754029762514,42.86402921,3666.2,3666.1,0.022]
[1754029763792,12.86402921,3666.2,3666.1,0.022]
[1754029764131,12.86479337,3666.2,3666.1,0.022]
[1754029764306,42.86479337,3666.2,3666.1,0.022]
[1754029767016,42.86537066,3666.2,3666.1,0.022]
[1754029767409,42.86537066,3666.2,3665.1,0.02]
[1754029767410,0.2728,3665.9,3665.1,0.02]
[1754029767591,3.0,3665.2,3665.1,0.02]
[1754029767788,37.77475903,3665.2,3665.1,0.02]
[1754029768019,33.38675903,3665.2,3665.1,0.02]
[1754029768217,30.0,3664.2,3663.1,0.02]
[1754029768384,8.49945079,3664.2,3663.5,0.4671]
[1754029768603,9.04945079,3664.2,3663.5,0.4671]
[1754029768810,9.08245079,3664.2,3663.1,0.02]
[1754029769006,3.45081032,3664.2,3663.1,0.02]
[1754029769219,7.87181032,3664.2,3663.1,0.1635]
[1754029769425,7.87181032,3664.2,3663.7,0.62387757]
[1754029769710,3.45081032,3664.2,3663.7,0.62387757]
[1754029769911,3.45081032,3664.2,3664.1,0.4871]
[1754029769912,7.87281032,3664.2,3664.1,0.4871]
[1754029770619,7.87081032,3664.2,3664.1,0.02]
[1754029770838,8.67166217,3664.2,3664.1,0.02]
[1754029772048,8.66866217,3664.2,3664.1,0.02]
[1754029772935,7.86781032,3664.2,3664.1,0.02]
[1754029773334,7.86781032,3664.2,3664.1,0.4871]
[1754029773549,7.86481032,3664.2,3664.1,0.4871]
[1754029774113,7.86481032,3664.2,3664.1,0.02]
[1754029774315,0.24995903,3664.2,3664.1,0.02]
[1754029774560,4.66095903,3664.2,3664.1,0.6306]
[1754029775119,0.24995903,3664.2,3664.1,0.6306]
[1754029775553,0.25119801,3664.2,3664.1,0.6306]
[1754029776411,0.25119801,3664.2,3664.1,0.4871]
[1754029776616,3.25119801,3664.2,3664.1,0.4871]
[1754029776841,4.66219801,3664.2,3664.1,0.4871]
[1754029777113,7.66219801,3664.2,3664.1,0.4871]
[1754029777455,7.66219801,3664.2,3664.1,0.022]
[1754029778161,8.42841781,3664.2,3664.1,0.022]
[1754029778316,7.66219801,3664.2,3664.1,0.022]
[1754029778650,7.79899801,3664.2,3664.1,0.022]
[1754029781473,7.79958588,3664.2,3664.1,0.022]
[1754029782449,8.27138588,3664.2,3664.1,0.022]
[1754029782660,7.79958588,3664.2,3664.1,0.022]
[1754029783381,8.62639447,3664.2,3664.1,0.022]
[1754029784751,40.11669447,3664.2,3664.1,0.022]
[1754029785384,3.55,3664.1,3663.7,0.15677757]
[1754029785689,33.55,3663.8,3663.7,0.15677757]
[1754029785877,3.55,3663.3,3663.1,0.02]
[1754029786193,39.05853981,3663.2,3663.1,0.02]
[1754029786354,34.10653981,3663.2,3663.1,0.02]
[1754029786553,37.65378588,3663.2,3663.1,0.02]
[1754029787189,37.65378588,3663.2,3662.1,0.1855]
[1754029787190,0.55,3663.0,3662.1,0.02]
[1754029787514,4.66582254,3662.9,3662.1,0.02]
[1754029787690,3.0,3662.6,3662.1,0.4766]
[1754029787906,0.25182254,3662.5,3662.2,0.6421]
[1754029788066,0.25182254,3662.5,3662.1,0.02]
[1754029788067,0.25182254,3662.4,3662.3,0.6421]
[1754029788404,0.25182254,3662.4,3662.3,0.4566]
[1754029788767,0.25182254,3662.4,3662.1,0.02]
[1754029789082,0.25182254,3662.3,3662.1,0.4766]
[1754029789402,0.25182254,3662.2,3662.1,0.02]
[1754029789761,0.25182254,3662.2,3662.1,0.4766]
[1754029789992,0.25165832,3662.2,3662.1,0.02]
[1754029790178,30.0,3662.9,3662.1,0.02]
[1754029790385,0.4382,3662.7,3662.1,0.02]
[1754029790570,0.25173284,3662.6,3662.1,0.02]
[1754029790768,0.25173284,3662.5,3662.1,0.02]
[1754029790984,0.25173284,3662.4,3662.1,0.02]
[1754029791181,0.25173284,3662.3,3662.1,0.02]
[1754029791438,0.25173284,3662.2,3662.1,0.4766]
[1754029791637,0.25173284,3662.2,3662.1,0.02]
[1754029791860,0.4382,3662.7,3662.1,0.02]
[1754029792044,0.25154339,3662.6,3662.1,0.4766]
[1754029792227,0.25154339,3662.5,3662.2,0.4566]
[1754029792547,0.20293608,3663.1,3662.3,0.1855]
[1754029792548,0.25154339,3662.4,3662.3,0.1855]
[1754029792771,0.25154339,3662.4,3662.3,0.6421]
[1754029793110,0.20530237,3663.1,3662.3,0.6421]
[1754029793354,0.25158365,3663.0,3662.4,0.4566]
[1754029793558,0.25158365,3662.9,3662.4,0.4566]
[1754029793771,0.25158365,3662.8,3662.5,0.1855]
[1754029794058,0.25158365,3662.7,3662.6,0.6421]
[1754029794259,0.25158365,3662.7,3662.1,0.02]
[1754029794428,0.4382,3663.8,3662.6,0.6421]
[1754029794754,0.2516259,3663.7,3662.7,0.4566]
[1754029794939,0.2516259,3663.6,3662.7,0.4566]
[1754029795260,0.2516259,3663.5,3663.2,0.1368]
[1754029795445,0.2516259,3663.4,3663.2,0.1368]
[1754029795618,0.1368,3663.8,3663.3,0.6421]
[1754029795818,0.25176516,3663.7,3663.4,0.4566]
[1754029796053,0.25176516,3663.6,3663.3,0.1855]
[1754029796355,0.1368,3663.8,3663.5,0.4566]
[1754029796519,0.25186514,3663.7,3663.5,0.4566]
[1754029796861,0.38866514,3663.6,3663.1,0.1368]
[1754029797152,0.25186514,3663.5,3663.1,0.09814]
[1754029797353,0.25186514,3663.4,3663.1,0.09814]
[1754029797538,0.25186514,3663.3,3663.1,0.09814]
[1754029797726,0.25186514,3663.2,3663.1,0.09814]
[1754029798126,0.25186514,3663.2,3663.1,0.28364]
[1754029798335,0.25186514,3663.2,3663.1,0.09814]
[1754029798747,0.25186514,3663.2,3663.1,0.28364]
[1754029799149,0.25186514,3663.2,3663.1,0.36904]
[1754029799325,0.001,3663.9,3663.1,0.55454]
[1754029799529,0.25209842,3663.8,3663.5,0.1368]
[1754029799780,0.25209842,3663.7,3663.5,0.1368]
[1754029799985,0.25209842,3663.6,3663.5,0.1368]
[1754029800473,0.25209842,3663.6,3663.5,0.5932]
[1754029801029,0.25219163,3663.6,3663.5,3.32276713]
[1754029801266,0.001,3663.9,3663.5,3.32276713]
[1754029801267,0.001,3663.9,3663.5,1.64597875]
[1754029801476,0.25224816,3663.8,3663.6,12.27627438]
[1754029801682,0.001,3663.9,3663.8,0.1368]
[1754029801878,0.001,3663.9,3663.8,2.86620662]
[1754029802178,0.001,3663.9,3663.8,7.76660662]
[1754029802346,0.001,3663.9,3663.8,8.31660662]
[1754029802578,0.02,3664.9,3664.4,2.72895972]
[1754029802579,0.2523109,3664.5,3664.4,2.72895972]
[1754029802767,0.25244439,3664.8,3664.4,12.27627438]
[1754029802961,0.25244791,3664.7,3664.5,0.4564]
[1754029803149,0.25244791,3664.6,3664.5,7.19815627]
[1754029803345,0.2524703,3664.8,3664.7,2.72873632]
[1754029803666,0.02,3665.9,3664.9,2.72856589]
[1754029803871,0.25247049,3665.8,3665.6,11.81987438]
[1754029804034,0.25247049,3665.7,3665.6,11.81987438]
[1754029804230,0.25247049,3665.7,3665.6,16.25987438]
[1754029804436,0.25247049,3665.7,3665.6,4.5758]
[1754029804748,0.25247049,3665.7,3665.6,4.439]
[1754029806070,0.25247049,3665.8,3665.5,0.1368]
[1754029806390,0.25247049,3665.7,3664.8,0.2709]
[1754029806591,0.25247049,3665.6,3665.3,0.1368]
[1754029806798,0.25247049,3665.5,3663.8,2.28660316]
[1754029807000,0.25247049,3665.5,3663.2,2.72979268]
[1754029807001,0.1368,3665.1,3664.4,4.438]
[1754029807185,1.19047049,3665.0,3664.3,4.438]
[1754029807497,1.32727049,3664.9,3664.4,0.1368]
[1754029807701,1.0748,3664.9,3664.4,0.1368]
[1754029808003,0.938,3664.8,3664.4,0.1368]
[1754029808171,0.938,3664.8,3664.3,4.437]
[1754029808367,1.0748,3664.7,3664.3,4.436]
[1754029808678,0.938,3664.6,3663.8,4.438]
[1754029808890,0.1368,3664.4,3663.8,4.438]
[1754029809269,0.1368,3664.5,3664.0,0.1368]
[1754029809456,0.4998,3664.7,3664.0,0.1368]
[1754029809656,0.1368,3664.7,3664.2,0.1368]
[1754029809881,0.938,3665.3,3664.2,0.2709]
[1754029810119,1.0748,3665.3,3664.7,0.1368]
[1754029810759,0.4382,3665.7,3664.7,0.1368]
[1754029811079,0.4998,3665.6,3664.9,0.1368]
[1754029811281,0.4998,3665.6,3665.2,0.1368]
[1754029811499,0.02,3665.9,3665.2,4.435]
[1754029811670,0.02,3665.9,3665.5,0.1368]
[1754029811995,0.02,3665.9,3665.7,0.136]
[1754029812163,0.5198,3665.9,3665.7,0.136]
[1754029812716,0.958,3665.9,3665.7,0.136]
[1754029813015,0.02,3665.9,3665.7,0.136]
[1754029813164,0.02,3665.9,3665.7,0.593]
[1754029814002,0.02,3665.9,3665.8,3.0]
[1754029815931,0.02,3665.9,3665.8,0.2709]
[1754029816137,0.02,3665.9,3665.8,4.428]
[1754029816294,0.02,3665.9,3665.7,0.136]
[1754029816499,0.4915,3665.9,3665.8,4.424]
[1754029816700,0.02,3665.9,3665.8,4.424]
[1754029817099,0.02,3665.9,3665.8,4.422]
[1754029818833,0.02,3665.9,3665.8,4.90489]
[1754029819035,0.02,3665.9,3665.8,8.49729]
[1754029819237,0.02,3665.9,3665.8,3.61889]
[1754029819460,0.02,3665.9,3665.8,8.03589]
[1754029819664,0.02,3665.9,3665.8,5.03789]
[1754029820639,0.02,3665.9,3665.8,4.554]
[1754029822033,0.02,3665.9,3665.8,4.8249]
[1754029822261,0.02,3665.9,3665.8,5.0104]
[1754029822772,0.02,3665.9,3665.8,4.8249]
[1754029822961,0.02,3665.9,3665.8,0.4069]
[1754029823160,0.02,3665.9,3665.8,5.77871201]
[1754029823328,0.02,3665.9,3665.8,5.96421201]
[1754029823537,0.02,3665.9,3665.8,9.24212951]
[1754029823957,0.02,3665.9,3665.8,6.51421201]
[1754029825852,0.02,3665.9,3665.8,1.91471201]
[1754029826060,0.02,3665.9,3665.8,6.05381201]
[1754029826639,0.02,3665.9,3665.8,5.49781201]
[1754029827167,0.02,3665.9,3665.8,1.09381201]
[1754029827356,0.02,3665.9,3665.8,5.49781201]
[1754029827558,0.02,3665.9,3665.8,1.09381201]
[1754029827934,0.02,3665.9,3665.8,5.49781201]
[1754029828639,0.4702,3665.9,3665.8,0.136]
[1754029828843,0.9417,3665.9,3665.8,4.539]
[1754029829041,0.9417,3665.9,3665.8,4.538]
[1754029829434,0.9417,3665.9,3665.8,0.136]
[1754029829648,0.9417,3665.9,3665.8,4.537]
[1754029829849,0.9417,3665.9,3665.8,0.136]
[1754029830177,0.9417,3665.9,3665.8,4.537]
[1754029831679,0.9417,3665.9,3665.8,0.136]
[1754029831849,0.9417,3665.9,3665.8,4.536]
[1754029832162,0.9417,3665.9,3665.8,4.53]
[1754029832897,0.9417,3665.9,3663.9,12.07259389]
[1754029833169,0.9217,3665.8,3664.1,3.0]
[1754029833376,0.9217,3665.7,3664.1,3.0]
[1754029833572,0.9217,3665.6,3664.1,3.0]
[1754029833774,0.9217,3665.6,3664.2,2.17175399]
[1754029833940,0.9217,3665.5,3664.3,4.402]
[1754029834133,0.9217,3665.5,3664.5,11.80169389]
[1754029834459,0.9217,3665.5,3664.6,4.402]
[1754029834790,0.9217,3665.4,3664.0,2.24094602]
[1754029835090,0.9217,3665.3,3663.5,11.80369389]
[1754029835383,0.9217,3665.2,3663.6,4.404]
[1754029835552,0.9217,3665.1,3663.6,4.404]
[1754029835753,0.9217,3665.0,3663.6,4.404]
[1754029835973,0.9217,3664.9,3663.7,1.62076939]
[1754029836175,0.9217,3664.8,3663.7,1.62076939]
[1754029836340,0.9217,3664.7,3663.7,1.62076939]
[1754029837074,0.9217,3664.7,3663.7,1.89166939]
[1754029837261,0.9217,3664.6,3663.5,11.80369389]
[1754029837435,2.95638044,3665.9,3663.8,4.399]
[1754029837436,0.9217,3664.5,3663.8,4.399]
[1754029837974,0.4502,3664.7,3663.8,4.399]
[1754029838276,0.4502,3664.7,3663.5,11.80369389]
[1754029838451,0.4502,3664.7,3663.6,4.398]
[1754029838657,0.4715,3664.6,3663.7,1.64725939]
[1754029839164,0.4502,3665.1,3664.1,11.80169389]
[1754029839367,0.4502,3665.4,3664.2,0.4564]
[1754029839675,0.9217,3665.4,3664.3,4.396]
[1754029839984,0.9217,3665.4,3664.4,4.396]
[1754029840281,0.4715,3665.4,3664.5,4.86269]
[1754029840454,0.4502,3665.3,3664.5,0.46669]
[1754029840642,0.4502,3665.3,3664.6,4.396]
[1754029841043,0.02,3665.9,3664.7,16.22398125]
[1754029841265,0.02,3665.9,3665.3,11.80169389]
[1754029841476,0.02,3665.9,3665.3,16.19569389]
[1754029841781,0.02,3665.9,3665.3,16.46659389]
[1754029841998,0.021,3665.9,3665.4,1.64665939]
[1754029842292,0.021,3665.9,3665.4,1.91755939]
[1754029842458,0.021,3665.9,3665.4,1.64665939]
[1754029842646,0.4712,3665.9,3665.5,4.396]
[1754029842846,0.021,3665.9,3665.8,0.136]
[1754029844202,0.021,3665.9,3664.1,1.9589]
[1754029844203,30.0,3665.8,3664.1,1.9589]
[1754029844341,30.0,3665.8,3663.5,0.002]
[1754029844342,3.55,3665.5,3663.7,4.395]
[1754029844685,30.0,3665.6,3663.8,0.4708]
[1754029844686,0.4715,3665.4,3663.8,0.4708]
[1754029845556,0.4715,3665.4,3664.3,11.80169389]
[1754029845762,0.4715,3665.4,3664.4,0.4708]
[1754029845971,0.4715,3665.4,3664.4,4.9078]
[1754029846158,0.4715,3665.4,3664.5,0.4708]
[1754029846360,0.4715,3665.4,3664.5,2.14174939]
[1754029846584,0.4715,3665.4,3664.6,0.4695]
[1754029846744,0.021,3665.9,3664.6,0.4695]
[1754029846944,0.021,3665.9,3664.9,11.80169389]
[1754029847147,0.4665,3665.9,3665.0,0.4695]
[1754029847544,0.4665,3665.9,3665.0,1.46966587]
[1754029847964,0.4665,3665.9,3665.1,0.4695]
[1754029849401,0.021,3665.9,3665.1,0.4695]
[1754029851268,0.4455,3665.8,3665.1,0.4695]
[1754029851469,0.4455,3665.8,3665.1,4.8965]
[1754029851709,0.4455,3665.8,3664.5,1.67094939]
[1754029851882,0.4455,3665.8,3664.8,0.4695]
[1754029852591,0.4455,3665.8,3664.8,4.8895]
[1754029852799,0.4455,3665.8,3664.8,0.4695]
[1754029853368,0.021,3665.9,3664.7,4.8895]
[1754029853569,0.4455,3665.7,3664.8,0.4695]
[1754029853797,0.021,3665.9,3664.9,0.62367643]
[1754029853798,0.4665,3665.9,3664.9,0.62367643]
[1754029854000,0.4455,3665.8,3664.8,0.4695]
[1754029854204,0.1368,3665.6,3665.1,0.1368]
[1754029854406,0.1368,3665.6,3664.8,0.4695]
[1754029854407,0.4455,3665.5,3665.0,0.1368]
[1754029855819,0.1368,3665.3,3663.5,0.002]
[1754029856123,0.1368,3664.6,3664.1,0.1368]
[1754029856293,0.4455,3664.5,3664.1,0.6063]
[1754029856615,0.4455,3664.4,3664.2,0.4695]
[1754029856823,0.1368,3664.6,3664.1,0.1368]
[1754029857122,0.1368,3664.2,3663.7,0.6063]
[1754029857418,0.1368,3664.2,3663.5,0.002]
[1754029857419,0.4455,3664.1,3663.5,0.1388]
[1754029858382,0.4455,3664.1,3663.5,0.6083]
[1754029859284,0.1368,3664.2,3663.6,0.4695]
[1754029859523,0.1368,3664.2,3663.7,0.1368]
[1754029859697,0.4455,3664.7,3663.8,0.4695]
[1754029860020,0.1368,3664.4,3663.9,0.1368]
[1754029860181,0.1368,3664.4,3664.0,0.4695]
[1754029860377,0.1368,3664.5,3664.0,0.4695]
[1754029860820,0.5823,3664.7,3664.2,0.1368]
[1754029861018,0.4455,3664.6,3664.2,0.1368]
[1754029861595,0.4455,3664.6,3663.5,0.002]
[1754029861596,0.55,3664.3,3663.5,0.002]
[1754029861784,0.1368,3663.6,3663.5,0.002]
[1754029862182,0.28907351,3666.1,3663.5,0.002]
[1754029862183,0.4455,3665.0,3663.5,12.73229389]
[1754029862405,0.1368,3664.6,3663.6,0.4695]
[1754029862606,0.5823,3664.6,3664.1,0.1368]
[1754029862821,0.4455,3664.5,3663.8,0.1368]
[1754029862982,0.4455,3664.5,3663.5,0.002]
[1754029862983,0.1368,3664.0,3663.5,0.002]
[1754029863187,0.1368,3663.7,3663.5,0.002]
[1754029863582,0.4455,3663.6,3663.5,0.002]
[1754029863884,0.1368,3663.7,3663.5,0.002]
[1754029864116,0.1368,3664.1,3663.6,0.4695]
[1754029864425,0.1368,3664.5,3663.6,0.9286]
[1754029864716,0.1368,3664.5,3663.9,0.1368]
[1754029864914,0.1368,3664.5,3664.0,0.4695]
[1754029865128,0.1368,3664.5,3663.9,0.1368]
[1754029865328,0.4455,3664.4,3663.9,0.1368]
[1754029865536,0.1368,3664.1,3663.5,0.1388]
[1754029865830,0.5823,3664.1,3663.5,0.1388]
[1754029865983,0.4455,3664.0,3663.5,0.002]
[1754029866190,0.1368,3663.8,3663.5,0.002]
[1754029866637,0.4455,3663.7,3663.5,0.002]
[1754029866923,4.42,3665.2,3663.5,0.002]
[1754029866924,0.021,3665.9,3663.8,2.72940662]
[1754029867131,0.021,3665.9,3665.7,11.80169389]
[1754029867486,0.021,3665.9,3665.8,0.81907917]
[1754029867686,0.021,3665.9,3665.8,0.95507917]
[1754029867988,0.021,3665.9,3665.8,0.6055]
[1754029868507,0.021,3665.9,3665.8,0.9278]
[1754029868707,0.021,3665.9,3665.8,2.92385465]
[1754029869209,0.021,3665.9,3665.8,2.60155465]
[1754029870330,0.021,3665.9,3665.8,0.4695]
[1754029870498,0.021,3665.9,3665.8,0.6055]
[1754029870700,0.4665,3665.9,3665.8,0.136]
[1754029871640,0.021,3665.9,3665.8,0.136]
[1754029871847,0.021,3665.9,3665.8,0.6055]
[1754029875618,0.021,3665.9,3665.8,0.136]
[1754029875792,0.4665,3665.9,3665.8,0.136]
[1754029876192,0.4665,3665.9,3665.7,0.136]
[1754029878016,0.021,3665.9,3665.7,0.136]
[1754029878209,0.021,3665.9,3665.7,0.6081]
[1754029878596,0.021,3665.9,3664.4,0.4721]
[1754029878597,0.5854,3665.8,3664.4,0.4721]
[1754029878820,0.4486,3665.7,3664.4,0.4721]
[1754029879943,0.4486,3665.7,3664.4,9.78003834]
[1754029880240,0.4486,3665.7,3664.5,1.89880383]
[1754029880396,0.4486,3665.7,3664.5,1.42670383]
[1754029880597,0.4486,3665.7,3664.6,0.4721]
[1754029882125,0.4486,3665.7,3664.2,0.4721]
[1754029882126,0.1368,3665.6,3664.2,0.4721]
[1754029882437,0.4486,3665.5,3664.2,0.4721]
[1754029882762,0.1368,3665.4,3664.2,0.4721]
[1754029883158,0.4486,3665.3,3664.2,0.4721]
[1754029885525,0.4486,3665.3,3664.3,0.02729034]
[1754029885725,0.4486,3665.3,3664.2,0.4721]
[1754029885726,0.4486,3665.3,3664.0,0.3223]
[1754029885964,0.4486,3665.6,3664.4,0.4721]
[1754029886159,0.4486,3665.6,3664.4,1.41787383]
[1754029886360,0.4486,3665.6,3664.5,0.4721]
[1754029888622,0.1368,3665.4,3664.9,0.1368]
[1754029888826,0.1368,3665.4,3665.0,0.4721]
[1754029889058,0.1368,3665.4,3665.1,0.4721]
[1754029889398,0.4486,3665.3,3664.1,0.4721]
[1754029889690,0.1368,3665.0,3664.4,0.1368]
[1754029890084,0.4486,3664.9,3664.4,0.1368]
[1754029890257,0.4486,3664.8,3664.4,0.1368]
[1754029890465,0.4486,3664.7,3664.4,0.1368]
[1754029890687,0.4486,3664.6,3664.4,0.1368]
[1754029890992,0.4486,3664.5,3664.4,0.1368]